Workbook

Sheet Overview
B2: Convert Formula to Value Without Paste Special
B4: Sales Rep | C4: Product | D4: Sales | E4: Profit
B5: Zuschuss | C5: Mouse | D5: 65342 | E5: 19602.6
B6: Joe | C6: Keyboard | D6: 60117 | E6: 18035.1
B7: Mark | C7: Graphics Cards | D7: 63514 | E7: 19054.2
B8: Janifer | C8: Mouse | D8: 66043 | E8: 19812.9
B9: Carroll | C9: Hard disks | D9: 60334 | E9: 18100.2
B10: Xylona | C10: Routers | D10: 53974 | E10: 16192.2
B11: Preis | C11: Keyboard | D11: 61274 | E11: 18382.2
B12: Dalton | C12: Graphics Cards | D12: 65845 | E12: 19753.5
B13: Mathis | C13: Memory cards | D13: 76930 | E13: 23079
B14: Willium | C14: Pen drives | D14: 64802 | E14: 19440.6

Sheet Keyboard Shortcuts
B2: Keyboard Shortcuts
B4: Sales Rep | C4: Product | D4: Sales | E4: Profit
B5: Zuschuss | C5: Mouse | D5: 65342 | E5: 19602.6
B6: Joe | C6: Keyboard | D6: 60117 | E6: 18035.1
B7: Mark | C7: Graphics Cards | D7: 63514 | E7: 19054.2
B8: Janifer | C8: Mouse | D8: 66043 | E8: 19812.9
B9: Carroll | C9: Hard disks | D9: 60334 | E9: 18100.2
B10: Xylona | C10: Routers | D10: 53974 | E10: 16192.2
B11: Preis | C11: Keyboard | D11: 61274 | E11: 18382.2
B12: Dalton | C12: Graphics Cards | D12: 65845 | E12: 19753.5
B13: Mathis | C13: Memory cards | D13: 76930 | E13: 23079
B14: Willium | C14: Pen drives | D14: 64802 | E14: 19440.6

Sheet F9
B2: Keyboard Shortcuts
B4: Sales Rep | C4: Product | D4: Sales | E4: Profit
B5: Zuschuss | C5: Mouse | D5: 65342 | E5: 19602.6
B6: Joe | C6: Keyboard | D6: 60117 | E6: =D6*30% -> 18035.1
B7: Mark | C7: Graphics Cards | D7: 63514 | E7: 19054.2
B8: Janifer | C8: Mouse | D8: 66043 | E8: 19812.9
B9: Carroll | C9: Hard disks | D9: 60334 | E9: 18100.2
B10: Xylona | C10: Routers | D10: 53974 | E10: 16192.2
B11: Preis | C11: Keyboard | D11: 61274 | E11: 18382.2
B12: Dalton | C12: Graphics Cards | D12: 65845 | E12: 19753.5
B13: Mathis | C13: Memory cards | D13: 76930 | E13: 23079
B14: Willium | C14: Pen drives | D14: 64802 | E14: 19440.6

Sheet Notepad
B2: Use of Notepad
B4: Sales Rep | C4: Product | D4: Sales | E4: Profit
B5: Zuschuss | C5: Mouse | D5: 65342 | E5: 19602.6
B6: Joe | C6: Keyboard | D6: 60117 | E6: 18035.1
B7: Mark | C7: Graphics Cards | D7: 63514 | E7: 19054.2
B8: Janifer | C8: Mouse | D8: 66043 | E8: 19812.9
B9: Carroll | C9: Hard disks | D9: 60334 | E9: 18100.2
B10: Xylona | C10: Routers | D10: 53974 | E10: 16192.2
B11: Preis | C11: Keyboard | D11: 61274 | E11: 18382.2
B12: Dalton | C12: Graphics Cards | D12: 65845 | E12: 19753.5
B13: Mathis | C13: Memory cards | D13: 76930 | E13: 23079
B14: Willium | C14: Pen drives | D14: 64802 | E14: 19440.6

Sheet Right-Click
B2: Right-Click Drag Down
B4: Sales Rep | C4: Product | D4: Sales | E4: Profit | F4: Value Without Formula
B5: Zuschuss | C5: Mouse | D5: 65342 | E5: =D5*30% -> 19602.6 | F5: 19602.6
B6: Joe | C6: Keyboard | D6: 60117 | E6: =D6*30% -> 18035.1 | F6: 18035.1
B7: Mark | C7: Graphics Cards | D7: 63514 | E7: =D7*30% -> 19054.2 | F7: 19054.2
B8: Janifer | C8: Mouse | D8: 66043 | E8: =D8*30% -> 19812.9 | F8: 19812.9
B9: Carroll | C9: Hard disks | D9: 60334 | E9: =D9*30% -> 18100.2 | F9: 18100.2
B10: Xylona | C10: Routers | D10: 53974 | E10: =D10*30% -> 16192.2 | F10: 16192.2
B11: Preis | C11: Keyboard | D11: 61274 | E11: =D11*30% -> 18382.2 | F11: 18382.2
B12: Dalton | C12: Graphics Cards | D12: 65845 | E12: =D12*30% -> 19753.5 | F12: 19753.5
B13: Mathis | C13: Memory cards | D13: 76930 | E13: =D13*30% -> 23079 | F13: 23079
B14: Willium | C14: Pen drives | D14: 64802 | E14: =D14*30% -> 19440.6 | F14: 19440.6

Sheet VBA
B2: Run a VBA Code to Convert Formula to Value
B4: Sales Rep | C4: Product | D4: Sales | E4: Profit
B5: Zuschuss | C5: Mouse | D5: 65342 | E5: 19602.6
B6: Joe | C6: Keyboard | D6: 60117 | E6: 18035.1
B7: Mark | C7: Graphics Cards | D7: 63514 | E7: 19054.2
B8: Janifer | C8: Mouse | D8: 66043 | E8: 19812.9
B9: Carroll | C9: Hard disks | D9: 60334 | E9: 18100.2
B10: Xylona | C10: Routers | D10: 53974 | E10: 16192.2
B11: Preis | C11: Keyboard | D11: 61274 | E11: 18382.2
B12: Dalton | C12: Graphics Cards | D12: 65845 | E12: 19753.5
B13: Mathis | C13: Memory cards | D13: 76930 | E13: 23079
B14: Willium | C14: Pen drives | D14: 64802 | E14: 19440.6

Sheet Table1
A1: Sales Rep | B1: Product | C1: Sales | D1: Profit
A2: Zuschuss | B2: Mouse | C2: 65342 | D2: 19602.6
A3: Joe | B3: Keyboard | C3: 60117 | D3: 18035.1
A4: Mark | B4: Graphics Cards | C4: 63514 | D4: 19054.2
A5: Janifer | B5: Mouse | C5: 66043 | D5: 19812.9
A6: Carroll | B6: Hard disks | C6: 60334 | D6: 18100.2
A7: Xylona | B7: Routers | C7: 53974 | D7: 16192.2
A8: Preis | B8: Keyboard | C8: 61274 | D8: 18382.2
A9: Dalton | B9: Graphics Cards | C9: 65845 | D9: 19753.5
A10: Mathis | B10: Memory cards | C10: 76930 | D10: 23079
A11: Willium | B11: Pen drives | C11: 64802 | D11: 19440.6

Sheet Power Query
B2: Use of the Power Query Editor
B4: Sales Rep | C4: Product | D4: Sales | E4: Profit
B5: Zuschuss | C5: Mouse | D5: 65342 | E5: =D5*30% -> 19602.6
B6: Joe | C6: Keyboard | D6: 60117 | E6: =D6*30% -> 18035.1
B7: Mark | C7: Graphics Cards | D7: 63514 | E7: 19054.2
B8: Janifer | C8: Mouse | D8: 66043 | E8: 19812.9
B9: Carroll | C9: Hard disks | D9: 60334 | E9: 18100.2
B10: Xylona | C10: Routers | D10: 53974 | E10: 16192.2
B11: Preis | C11: Keyboard | D11: 61274 | E11: 18382.2
B12: Dalton | C12: Graphics Cards | D12: 65845 | E12: 19753.5
B13: Mathis | C13: Memory cards | D13: 76930 | E13: 23079
B14: Willium | C14: Pen drives | D14: 64802 | E14: 19440.6
